{"text_format":"1","workbook":"xlsx","n_sheets":3,"sheets":["خلية رقم 1","خلية رقم 2","خلية رقك 3"],"not_rendered":{"charts":0,"images":1,"macros":1,"external_links":0,"defined_names":2,"comments":0,"pivot_tables":0},"unopened":[],"bounds":{"document_bytes":16777216,"sheet_cells":100000,"rows_first":2000,"rows_last":500,"rows_between":2000,"halvings":0,"cell_chars":16384,"cell_head_chars":4096},"cells_cut":0,"cells_raw":0,"read":"whole","date_system":"1900"}

{"sheet":"خلية رقم 1","index":0,"n_rows":39,"n_cols":47,"rows_kept":39,"cut":false,"hidden":false,"merged":[[24,8,24,23],[4,23,11,23],[4,24,11,24],[38,8,38,23],[25,13,25,19],[26,13,26,15],[26,17,26,19],[0,0,0,1],[4,1,4,5],[9,1,9,5],[4,26,11,26],[13,11,13,26],[4,25,11,25],[4,17,11,17],[1,11,1,26],[4,11,11,11],[4,12,11,12],[4,13,11,13],[4,14,11,14],[4,15,11,15],[4,16,11,16],[4,18,11,18],[4,19,11,19],[4,20,11,20],[4,21,11,21],[4,22,11,22],[0,5,0,7],[15,15,15,21]]}
["اختيار ترتيب الإطار",null,"الترتيب1",null,null,"خلية نحل رقم 1",null,null,null,null,null,0,{"$f":"SUM($A$8:A$8)","v":1},{"$f":"SUM($A$8:B$8)","v":2},{"$f":"SUM($A$8:C$8)","v":3},{"$f":"SUM($A$8:D$8)","v":4},{"$f":"SUM($A$8:E$8)","v":5},{"$f":"SUM($A$8:F$8)","v":6},{"$f":"SUM($A$8:G$8)","v":7},{"$f":"SUM($A$8:H$8)","v":8},{"$f":"SUM($A$8:J$8)","v":8},{"$f":"SUM($A$8:K$8)","v":8},{"$f":"SUM($A$8:L$8)","v":8},{"$f":"SUM($A$8:M$8)","v":8},{"$f":"SUM($A$8:N$8)","v":8},{"$f":"SUM($A$8:O$8)","v":8},{"$f":"SUM($A$8:P$8)","v":8}]
[null,null,null,null,"تختار من هنا الترتيب الذي تريد من القائمة",null,null,null,null,null,null,null,null,null,null,null,null,null,null,null,null,null,null,null,null,null,null,null,null,null,null,null,null,null,null,null,null,null,null,null,null,null,null,null,null,null,"تغدية غير منتهية"]
[null,null,"الشكل 1",null,"قوائم الترتيب تجدها في النطاقات AG5:AR13",null,null,null,null,null,null,{"$f":"IFERROR(INDEX($A$7:$H$7,MATCH(L4-1,$L$1:$T$1,1)),\"\")","v":"عسل يمين"},{"$f":"IFERROR(INDEX($A$7:$H$7,MATCH(M4-1,$L$1:$T$1,1)),\"\")","v":"حبوب اللقاح"},"مضاف اساس","حضنة مفتوحة","حضنة مغلقة","مضاف اساس","حبوب اللقاح","عسل يسار",{"$f":"IFERROR(INDEX($A$7:$I$7,MATCH(T4-1,$L$1:$U$1,1)),\"\")","v":""},{"$f":"IFERROR(INDEX($A$7:$H$7,MATCH(U4-1,$L$1:$T$1,1)),\"\")","v":""},"","","","","","",null,null,null,null,null,null,null,null,null,null,null,null,null,null,null,null,null,null,null,"تغدية منتهية"]
[null,null,null,null,null,null,null,null,null,null,null,1,2,3,4,5,6,7,8,9,10,11,12,13,14,15,16,null,null,"حضنة مفتوحة",null,null,null,null,null,"Methode (1)","Methode (2)","Methode (3)","Methode (A)","Methode (B)",null,null,null,null,null,null,"غداية (1) يسار"]
[null,"متال رقم 1",null,null,null,null,null,null,null,null,null,{"$f":"L3","v":"عسل يمين"},{"$f":"M3","v":"حبوب اللقاح"},"مضاف اساس","حضنة مفتوحة","حضنة مغلقة","مضاف اساس","حبوب اللقاح","عسل يسار","","","","","","","",{"$f":"AA3","v":""},null,null,"حضنة مغلقة",null,null,null,"الترتيب1","الترتيب2","Phase (1)","Phase (2)","Phase (3)","Phase (4)","Phase (5)",null,null,null,null,null,null,"غداية (1) يمين"]
["اطار","اطار","اطار","اطار","اطار","اطار","اطار","اطار",null,null,null,null,null,null,null,null,null,null,null,null,null,null,null,null,null,null,null,null,null,"عسل مختوم",null,null,1,"عسل يمين","عسل ",null,null,null,null,null,null,null,null,null,null,null,"عسل جبوب اللقاح يمين"]
[{"$f":"INDEX(إطار,1)","v":"عسل يمين"},{"$f":"INDEX(إطار,2)","v":"حبوب اللقاح"},{"$f":"INDEX(إطار,3)","v":"مضاف اساس"},{"$f":"INDEX(إطار,4)","v":"حضنة مفتوحة"},{"$f":"INDEX(إطار,5)","v":"حضنة مغلقة"},{"$f":"INDEX(إطار,6)","v":"مضاف اساس"},{"$f":"INDEX(إطار,7)","v":"حبوب اللقاح"},{"$f":"INDEX(إطار,8)","v":"عسل يسار"},null,null,null,null,null,null,null,null,null,null,null,null,null,null,null,null,null,null,null,null,null,"حبوب اللقاح",null,null,2,"حبوب اللقاح","حبوب اللقاح",null,null,null,null,null,null,null,null,null,null,null,"عسل جبوب اللقاح يسار"]
[1,1,1,1,1,1,1,1,null,null,null,null,null,null,null,null,null,null,null,null,null,null,null,null,null,null,null,null,null,"مضاف",null,null,3,"مضاف اساس","حضنة مغلقة",null,null,null,null,null,null,null,null,null,null,null,"أساس  "]
[null,null,null,null,null,null,null,null,null,null,null,null,null,null,null,null,null,null,null,null,null,null,null,null,null,null,null,null,null,null,null,null,4,"حضنة مفتوحة","مضاف اساس",null,null,null,null,null,null,null,null,null,null,null,"حضنة مغلقة"]
[null,null,null,null,null,null,null,null,null,null,null,null,null,null,null,null,null,null,null,null,null,null,null,null,null,null,null,null,null,null,null,null,5,"حضنة مغلقة","حضنة مفتوحة",null,null,null,null,null,null,null,null,null,null,null,"حضنة مفتوحة"]
[null,null,null,null,null,null,null,null,null,null,null,null,null,null,null,null,null,null,null,null,null,null,null,null,null,null,null,null,null,null,null,null,6,"مضاف اساس","مضاف اساس",null,null,null,null,null,null,null,null,null,null,null,"عسل مخثوم"]
[null,null,null,null,null,null,null,null,null,null,null,null,null,null,null,null,null,null,null,null,null,null,null,null,null,null,null,null,null,"مضاف اساس",null,null,7,"حبوب اللقاح","حبوب اللقاح يسار",null,null,null,null,null,null,null,null,null,null,null,"عسل غير مخثوم"]
[null,null,null,null,null,null,null,null,null,null,null,null,null,null,null,null,null,null,null,null,null,null,null,null,null,null,null,null,null,null,null,null,8,"عسل يسار","عسل ",null,null,null,null,null,null,null,null,null,null,null,"لاوجود لحبوب اللقاح"]
[null,null,null,null,null,null,null,null,null,null,null,null,null,null,null,null,null,null,null,null,null,null,null,null,null,null,null,null,null,null,null,null,9,null,null,null,null,null,null,null,null,null,null,null,null,null,"لاوجود للعسل"]
[null,null,null,null,null,null,null,null,null,null,null,null,null,null,null,null,null,null,null,null,null,null,null,null,null,null,null,null,null,null,null,null,10,null,null,null,null,null,null,null,null,null,null,null,null,null,"لاوجود للحضنة المفتوحة"]
[null,null,null,null,null,null,null,null,null,null,null,null,null,null,null,"الشكل 2",null,null,null,null,null,null,null,null,null,null,null,null,null,null,null,null,null,null,null,null,null,null,null,null,null,null,null,null,null,null,"لاوجود للحضنة الغلقة"]
[]
[]
[]
[]
[null,null,null,null,null,null,null,null,null,null,null,null,null,null,null,null,null,null,null,null,null,null,null,null,null,null,null,null,null,null,null,null,null,null,null,null,null,null,null,null,null,null,null,null,null,null,"تغدية بروتينية منتهية"]
[null,null,null,null,null,null,null,"الشكل 3",null,null,null,null,null,null,null,null,null,null,null,null,null,null,null,null,null,null,null,null,null,null,null,null,null,null,null,null,null,null,null,null,null,null,null,null,null,null,"تغدية بروتينية غير منتهية"]
[]
[]
[null,null,null,null,null,null,null,null,"معلومات حول الخلية "]
[null,null,null,null,null,null,null,"اصل الخلية : ",null,null,null,null,null,"الكثافة النحلية",null,null,null,null,null,null,null,null,"التغدية محلول  : "]
[null,null,null,null,null,null,null,null,null,null,null,null,null,"النحل الحاضن",null,null,null,"النحل السارح"]
[]
[null,null,null,null,null,null,null,"نوع الملكة :   ",null,null,null,null,null,null,null,null,null,null,null,null,null,null,"بيوت ذكرية  : "]
[]
[]
[null,null,null,null,null,null,null,null,null,null,null,null,null,null,null,null,null,null,null,null,null,null,"بيوت ملكية  : "]
[]
[]
[]
[]
[]
[]
[null,null,null,null,null,null,null,null,"ملاحظات واقتراحات"]

{"sheet":"خلية رقم 2","index":1,"n_rows":0,"n_cols":0,"rows_kept":0,"cut":false,"hidden":false,"merged":[]}

{"sheet":"خلية رقك 3","index":2,"n_rows":0,"n_cols":0,"rows_kept":0,"cut":false,"hidden":false,"merged":[]}